fUSD/lending_fUSD_20240215
["ID","MTS","AMOUNT","RATE_DAILY","PERIOD"]
[314114193,1707993050496,-700.12500001,0.000417,87]
[314114194,1707993050508,-1685.81820173,0.000417,87]
[314114195,1707993050517,-410.45139827,0.000417,48]
[314114196,1707993050542,-150.0,0.00040921,2]
[314114197,1707993050551,-150.0,0.00041047,2]
[314114198,1707993050561,-2589.54860173,0.000417,48]
[314114199,1707993050571,-186.83697916,0.00041706,2]
[314114200,1707993050580,-641.15103411,0.0004171,48]
[314114201,1707993050593,-301.50114819,0.0004171,48]
[314114202,1707993050606,-1371.23808471,0.0004171,48]
[314114203,1707993050626,-150.0,0.00040018,2]
[314114204,1707993050636,-150.0,0.00040687,2]
[314114205,1707993050645,-686.10973299,0.0004171,48]
[314114206,1707993050655,-155.811276,0.00041711,30]
[314114207,1707993050665,-2157.17097245,0.0004172,48]
[314114208,1707993050677,-3173.34351155,0.0004172,48]
[314114209,1707993050687,-4236.27745153,0.00041721,16]
[314114210,1707993050697,-258.11423464,0.00041723,30]
[314114211,1707993050707,-500.0,0.0004173,30]
[314114212,1707993050717,-500.0,0.0004173,30]
[314114213,1707993050727,-150.0,0.00041732,2]
[314114214,1707993050737,-2110.0,0.0004174,15]
[314114215,1707993050749,-830.19,0.0004174,30]
[314114216,1707993050760,-77.83497895,0.0004174,30]
[314114217,1707993050775,-494.35502105,0.0004174,30]
[314114218,1707993050785,-1500.0,0.0004174,2]
[314114219,1707993050796,-846.48,0.0004174,30]
[314114220,1707993050808,-500.0,0.0004174,30]
[314114221,1707993050818,-8853.01,0.0004174,30]
[314114222,1707993050829,-500.0,0.0004174,30]
[314114223,1707993050838,-724.33,0.0004174,30]
[314114224,1707993050848,-657.72,0.00041742,2]
[314114225,1707993050857,-150.0,0.00041749,2]
[314114226,1707993050867,-258.11423464,0.00041749,30]
[314114227,1707993050876,-150.0,0.00041758,2]
[314114228,1707993050999,-150.0,0.00041768,2]
[314114229,1707993051010,-150.0,0.0004177,2]
[314114230,1707993051020,-1500.0,0.00041782,2]
[314114231,1707993051030,-150.0,0.00041792,2]
[314114232,1707993051039,-1500.0,0.00041794,2]
[314114233,1707993051049,-2000.6,0.000418,30]
[314114234,1707993051059,-1185.06698491,0.00041818,2]
[314114235,1707993051069,-660.0,0.0004182,30]
[314114236,1707993051078,-673.59369223,0.0004182,30]
[314114237,1707993051087,-151.4562757,0.00041823,2]
[314114238,1707993051096,-150.0,0.00041825,2]
[314114239,1707993051106,-150.0,0.00041831,2]
[314114240,1707993051115,-1500.0,0.00041832,2]
[314114241,1707993051125,-597.13,0.0004184,30]
[314114242,1707993051135,-500.0,0.0004184,30]
[314114243,1707993051144,-825.07,0.0004184,30]
[314114244,1707993051154,-804.83,0.0004184,30]
[314114245,1707993051163,-150.0,0.00041846,2]
[314114246,1707993051172,-150.0,0.0004185,2]
[314114247,1707993051183,-150.0,0.00041854,2]
[314114248,1707993051192,-150.0,0.00041866,2]
[314114249,1707993051202,-408.77,0.00041874,2]
[314114250,1707993051213,-150.0,0.00041878,2]
[314114251,1707993051223,-150.91484716,0.00041888,30]
[314114252,1707993051232,-150.0,0.00041892,2]
[314114253,1707993051242,-150.0,0.00041892,2]
[314114254,1707993051251,-150.5,0.00041898,61]
[314114255,1707993051260,-1500.0,0.00041902,2]
[314114256,1707993051270,-150.5,0.00041908,61]
[314114257,1707993051279,-429.24092962,0.00041914,10]
[314114258,1707993051288,-200.0,0.00041917,13]
[314114259,1707993051298,-150.5,0.00041918,61]
[314114260,1707993051306,-150.0,0.00041921,2]
[314114261,1707993051316,-150.0,0.00041936,2]
[314114262,1707993051326,-150.0,0.00041938,2]
[314114263,1707993051335,-150.0,0.00041948,2]
[314114264,1707993051345,-150.0,0.00041951,2]
[314114265,1707993051355,-962.78071763,0.00041964,4]
[314114266,1707993051364,-243.0,0.0004197,61]
[314114267,1707993051373,-243.0,0.0004198,61]
[314114268,1707993051382,-150.0,0.00041986,2]
[314114269,1707993051391,-1029.1430351,0.00041986,2]
[314114270,1707993051401,-8094.25320703,0.00041986,2]
[314114271,1707993051531,-6785.32933397,0.00041986,2]
[314114272,1707993051541,-151.0,0.00041986,14]
[314114273,1707993051550,-200.0,0.00041987,19]
[314114274,1707993051560,-200.0,0.00041987,18]
[314114275,1707993051570,-200.0,0.00041987,17]
[314114276,1707993051579,-5907.9353581,0.00041987,2]
[314114277,1707993051588,-151.28080087,0.00041987,2]
[314114278,1707993051598,-1085.4140815,0.00041989,2]
[314114279,1707993051607,-243.0,0.0004199,61]
[314114280,1707993051616,-300.0,0.0004199,2]
[314114281,1707993051626,-150.0,0.00041992,2]
[314114282,1707993051635,-3316.12830692,0.00041994,2]
[314114283,1707993051647,-150.01,0.00041994,2]
[314114284,1707993051656,-150.0,0.00041999,3]
[314114285,1707993051665,-907.88856862,0.00042,22]
[314114286,1707993051682,-150.0,0.00041391,2]
[314114287,1707993051693,-2542.23230579,0.00042,22]
[314114288,1707993051704,-1244.0108524,0.00042,22]
[314114289,1707993051716,-7914.68547066,0.00042,22]
[314114290,1707993051728,-1690.75122528,0.00042,22]
[314114291,1707993051744,-150.0,0.00041321,2]
[314114292,1707993051757,-1295.92927751,0.00042,22]
[314114302,1707994231829,-350.0,0.00025,3]
[314114303,1707994231838,-232.06921319,0.00027,3]
[314114304,1707994231855,-167.93078681,0.00027,3]
[314114305,1707994231864,-149.13917345,0.000301,6]
[314114306,1707994231876,-350.86082655,0.000301,6]
[314114307,1707994231886,-161.5556614,0.00033649,2]
[314114308,1707994231896,-148.38883005,0.00033749,10]
[314114309,1707994231908,-1727.96399541,0.00033749,10]
[314114310,1707994231920,-25570.90172443,0.00033749,10]
[314114311,1707994231932,-2488.31324562,0.00033749,10]
[314114312,1707994231942,-1363.36017881,0.00035,120]
[314114313,1707994231952,-526.17,0.00035372,2]
[314114314,1707994231961,-271.7725223,0.00036035,3]
[314114315,1707994231970,-254.26463097,0.00036082,3]
[314114316,1707994231980,-193.46505983,0.00036084,3]
[314114317,1707994231989,-530.03,0.00036084,2]
[314114318,1707994232000,-526.72,0.00036975,2]
[314114320,1707994232013,-859.45,0.00037163,2]
[314114321,1707994232022,-167.89,0.00037253,2]
[314114323,1707994232032,-159.35,0.00037458,2]
[314114325,1707994232041,-250.0,0.00037517,2]
[314114327,1707994232051,-1147.01,0.00037545,2]
[314114329,1707994232059,-250.0,0.00037545,2]
[314114331,1707994232069,-250.0,0.00037545,111]
[314114333,1707994232079,-2000.0,0.00037561,2]
[314114335,1707994232089,-526.17,0.00037636,2]
[314114337,1707994232099,-160.45,0.00037669,2]
[314114338,1707994232110,-150.0,0.0003768,2]
[314114340,1707994232120,-153.08,0.000377,3]
[314114342,1707994232129,-153.08,0.000377,3]
[314114344,1707994232137,-153.08,0.000377,3]
[314114346,1707994232147,-153.08,0.000377,3]
[314114348,1707994232156,-153.08,0.000377,3]
[314114350,1707994232165,-153.08,0.000377,3]
[314114352,1707994232173,-153.08,0.000377,3]
[314114353,1707994232184,-175.68,0.00037842,2]
[314114355,1707994232194,-155.39,0.00038316,2]
[314114357,1707994232203,-499.99,0.00038316,2]
[314114359,1707994232212,-4033.2,0.00038356,15]
[314114361,1707994232221,-151.021518,0.00038398,18]
[314114363,1707994232230,-11504.0393,0.000384,2]
[314114365,1707994232239,-203.63,0.00038409,2]
[314114367,1707994232248,-3106.5178,0.00038584,2]
[314114368,1707994232257,-569.8,0.00038584,2]
[314114370,1707994232266,-744.71111028,0.00038599,2]
[314114372,1707994232275,-526.72,0.00038618,2]
[314114374,1707994232284,-39612.41961233,0.00038684,2]
[314114386,1707994238715,-1045.84,0.00038684,2]
[314114387,1707994238965,-3811.83728548,0.00038684,2]
[314114397,1707994240135,-10444.60000003,0.00038684,2]
[314114398,1707994241037,-1399.9,0.00038684,2]
[314114399,1707994241049,-929.41056187,0.00038684,2]
[314114413,1707994244903,-325.75685802,0.00038491,30]
[314114414,1707994244913,-23955.0610404,0.00038684,2]
[314114416,1707994245508,-558.74,0.00038684,2]
[314114417,1707994245566,-18242.19149989,0.00038684,2]
[314114418,1707994245576,-155.39,0.00038699,2]
[314114419,1707994245587,-226.47270188,0.00038774,11]
[314114420,1707994245597,-153.08,0.000388,3]
[314114421,1707994245606,-153.08,0.000388,3]
[314114422,1707994245615,-153.08,0.000388,3]
[314114423,1707994245624,-153.08,0.000388,3]
[314114424,1707994245634,-153.08,0.000388,3]
[314114425,1707994245643,-153.08,0.000388,3]
[314114426,1707994245652,-153.08,0.000388,3]
[314114427,1707994245661,-33324.15765133,0.00038861,2]
[314114428,1707994245672,-1399.85,0.00038861,2]
[314114429,1707994245683,-3612.29361182,0.00038861,2]
[314114430,1707994245695,-5230.0,0.00038861,2]
[314114431,1707994245842,-109907.04622466,0.00038861,2]
[314114432,1707994270362,98876.86721519,0.00023,2]
[314114433,1707994322050,312.37287528,0.00022,30]
[314114434,1707994377716,5655.3,0.0002501,30]
[314114435,1707994429949,151123.13278481,0.00023,2]
[314114436,1707994429978,16077.65172454,0.00023,2]
[314114439,1707994450226,376.83,0.00012,30]
[314114443,1707994935245,-158.64007132,0.0003,30]
[314114444,1707995172647,-250.0,0.00033709,111]
[314114445,1707995289821,-1040.14722774,0.00031399,5]
[314114446,1707995289847,-1040.14722774,0.00033282,6]
[314114447,1707995289875,-2919.70554452,0.00033798,10]
[314114448,1707995355325,-250.0,0.00033798,10]
[314114465,1707995431698,-3031.97559879,0.0002354,2]
[314114466,1707995431707,-152.32374737,0.0002499,2]
[314114467,1707995431716,-2289.58832569,0.0002509,2]
[314114468,1707995431726,-150.0,0.00029119,2]
[314114469,1707995431735,-6037.54160333,0.0002912,2]
[314114470,1707995431744,-1419.07072482,0.00029129,2]
[314114471,1707995431765,-713.61732375,0.00029129,2]
[314114472,1707995431979,-1307.7695803,0.00029129,2]
[314114474,1707995431988,-3921.4104197,0.0002913,2]
[314114489,1707995437706,-317.39179525,0.0002913,2]
[314114490,1707995437719,-281.67852228,0.0002913,2]
[314114491,1707995437761,-876.30395543,0.0002913,2]
[314114492,1707995437774,-466.16410362,0.0002913,2]
[314114493,1707995437829,-1085.41820824,0.0002913,2]
[314114494,1707995437840,-47921.01556575,0.0002913,2]
[314114495,1707995437953,-502.61833434,0.0002913,2]
[314114496,1707995437965,-376.40206524,0.0002913,2]
[314114497,1707995437986,-309585.35837379,0.0002913,2]
[314114498,1707995437997,-1040.14722774,0.00029515,4]
[314114499,1707995438008,-2549.98906502,0.00029615,2]
[314114500,1707995438020,-1228.71653555,0.0003,2]
[314114501,1707995438029,-352.78,0.0003,2]
[314114502,1707995438038,-1124.85,0.00031675,2]
[314114503,1707995438047,-670.64,0.00031698,2]
[314114504,1707995438056,-2000.0,0.00031728,2]
[314114505,1707995438066,-1435.55,0.00031855,2]
[314114507,1707995438075,-150.0,0.00031919,2]
[314114508,1707995438084,-152.32374737,0.00031942,2]
[314114510,1707995438094,-307.9,0.00031942,2]
[314114511,1707995438103,-23900.0,0.00031984,2]
[314114512,1707995438112,-1000.0,0.00032018,2]
[314114513,1707995438121,-555.0,0.00032021,2]
[314114514,1707995438131,-150.0,0.00032031,2]
[314114516,1707995438140,-1854.71,0.00032031,2]
[314114518,1707995438149,-2705.0,0.00032091,2]
[314114519,1707995438158,-250.0,0.00032091,2]
[314114520,1707995438168,-250.0,0.00032142,2]
[314114521,1707995438177,-225.22,0.00032176,2]
[314114522,1707995438186,-500.0,0.00032197,2]
[314114523,1707995438196,-225.22,0.00032265,2]
[314114524,1707995438205,-225.22,0.00032353,2]
[314114525,1707995438215,-225.22,0.00032441,2]
[314114526,1707995438224,-225.22,0.00032529,2]
[314114527,1707995438234,-225.22,0.00032618,2]
[314114528,1707995438243,-225.22,0.00032706,2]
[314114529,1707995438253,-225.22,0.00032794,2]
[314114530,1707995438263,-2975.69,0.00032871,2]
[314114531,1707995438272,-225.22,0.00032882,2]
[314114532,1707995438282,-23546.25,0.0003289,2]
[314114533,1707995438291,-1016.97,0.0003289,2]
[314114534,1707995438301,-191.24,0.00032913,2]
[314114535,1707995438311,-152.44,0.00032948,2]
[314114536,1707995438321,-225.22,0.00032971,2]
[314114537,1707995438330,-225.22,0.00033059,2]
[314114538,1707995438339,-2975.69,0.00033061,2]
[314114539,1707995438349,-225.22,0.00033147,2]
[314114540,1707995438358,-152.44,0.00033183,2]
[314114541,1707995438368,-286.2,0.00033219,2]
[314114542,1707995438378,-225.22,0.00033235,2]
[314114543,1707995438387,-2975.69,0.00033251,2]
[314114544,1707995438396,-225.22,0.00033324,2]
[314114545,1707995438406,-225.22,0.00033412,2]
[314114546,1707995438416,-152.44,0.00033419,2]
[314114547,1707995438426,-2975.69,0.00033441,2]
[314114548,1707995438435,-225.22,0.000335,2]
[314114549,1707995438446,-225.22,0.00033588,2]
[314114550,1707995438456,-2975.69,0.00033631,2]
[314114551,1707995438469,-152.44,0.00033654,2]
[314114552,1707995438479,-1854.71,0.00033675,2]
[314114553,1707995438488,-225.22,0.00033677,2]
[314114554,1707995438497,-225.22,0.00033765,2]
[314114555,1707995438507,-4132.75683528,0.00033798,10]
[314114556,1707995438516,-3651.2311899,0.00033798,10]
[314114557,1707995438525,-87461.40346999,0.00033798,10]
[314114558,1707995438534,-5218.17057733,0.00033798,10]
[314114559,1707995438546,-423.13423464,0.00033798,10]
[314114560,1707995438556,-2975.69,0.00033821,2]
[314114561,1707995438566,-225.22,0.00033853,2]
[314114562,1707995438575,-208.26,0.00033874,2]
[314114563,1707995438584,-152.44,0.00033889,2]
[314114564,1707995438594,-164.22,0.00033901,2]
[314114565,1707995438603,-670.64,0.00033961,2]
[314114566,1707995438613,-2975.69,0.00034011,2]
[314114567,1707995438622,-152.44,0.00034125,2]
[314114568,1707995438631,-2975.69,0.00034201,2]
[314114569,1707995438640,-1000.0,0.00034247,5]
[314114570,1707995438649,-1000.0,0.00034247,5]
[314114571,1707995438659,-1000.0,0.00034247,5]
[314114572,1707995438668,-742.0,0.00034247,5]
[314114573,1707995438677,-152.44,0.0003436,2]
[314114574,1707995438686,-2975.69,0.0003439,2]
[314114575,1707995438696,-184.93,0.00034521,2]
[314114576,1707995438705,-2975.69,0.0003458,2]
[314114577,1707995438714,-152.44,0.00034595,2]
[314114578,1707995438724,-1723.9428338,0.00034799,2]
[314114579,1707995438742,-1723.94283371,0.00034799,2]
[314114580,1707995438754,-1723.94283371,0.00034799,2]
[314114581,1707995438941,-1723.94283371,0.00034799,2]
[314114582,1707995438951,-152.44,0.00034831,2]
[314114583,1707995438961,-168.77,0.00034845,2]
[314114584,1707995438971,-286.2,0.0003488,2]
[314114585,1707995438980,-504.24296966,0.000349,2]
[314114586,1707995438990,-152.44,0.00035066,2]
[314114587,1707995439000,-185.58234875,0.0003513,2]
[314114588,1707995439009,-508.79126567,0.00035165,3]
[314114589,1707995439018,-1040.14722774,0.00035166,7]
[314114590,1707995439027,-504.24296948,0.00035277,2]
[314114591,1707995439036,-154.6,0.000353,2]
[314114592,1707995439046,-152.44,0.00035302,2]
[314114593,1707995439056,-1854.71,0.00035319,2]
[314114594,1707995439066,-152.44,0.00035537,2]
[314114595,1707995439075,-1723.94283371,0.00035654,2]
[314114596,1707995439084,-757.82,0.00035715,2]
[314114597,1707995439094,-166.12,0.00035762,2]
[314114598,1707995439104,-152.44,0.00035772,2]
[314114599,1707995439113,-757.82,0.00035903,2]
[314114600,1707995439124,-305.5855349,0.0003591,5]
[314114601,1707995439133,-10000.0,0.00036,15]
[314114602,1707995439143,-10000.0,0.00036,15]
[314114603,1707995439152,-10000.0,0.00036,15]
[314114604,1707995439161,-10000.0,0.00036,15]
[314114605,1707995439170,-10000.0,0.00036,15]
[314114606,1707995439180,-152.44,0.00036008,2]
[314114607,1707995439189,-1000.0,0.00036021,2]
[314114608,1707995439199,-757.82,0.00036091,2]
[314114609,1707995439211,-194.50874437,0.00036107,3]
[314114610,1707995439221,-23805.0,0.00036131,7]
[314114611,1707995439234,-670.64,0.00036225,2]
[314114612,1707995439245,-150.0,0.0003623,2]
[314114613,1707995439256,-152.44,0.00036243,2]
[314114614,1707995439266,-757.82,0.00036279,2]
[314114615,1707995439275,-175.39,0.00036285,2]
[314114616,1707995439286,-204.41,0.00036438,2]
[314114617,1707995439295,-757.82,0.00036467,2]
[314114618,1707995439305,-286.2,0.00036541,2]
[314114619,1707995439314,-206.0,0.00036599,2]
[314114620,1707995439324,-757.82,0.00036655,2]
[314114621,1707995439334,-757.82,0.00036843,2]
[314114622,1707995439345,-504.24296948,0.00036856,2]
[314114623,1707995439354,-434.31,0.00036922,2]
[314114624,1707995439364,-1854.71,0.00036963,2]
[314114625,1707995439374,-3611.68904468,0.00037,21]
[314114626,1707995439383,-757.82,0.00037031,2]
[314114627,1707995439393,-1040.14722774,0.00037049,8]
[314114628,1707995439403,-184.93,0.00037075,2]
[314114629,1707995439412,-151.021518,0.00037098,18]
[314114630,1707995439422,-151.021518,0.00037198,18]
[314114631,1707995439431,-161.78,0.00037211,2]
[314114632,1707995439441,-1723.94283371,0.00037214,2]
[314114633,1707995439452,-757.82,0.00037219,2]
[314114634,1707995439463,-151.021518,0.00037298,18]
[314114635,1707995439472,-151.0,0.00037301,4]
[314114636,1707995439482,-757.82,0.00037407,2]
[314114637,1707995439491,-757.82,0.00037594,2]
[314114639,1707995439502,-151.021518,0.00037698,18]
[314114640,1707995439511,-153.9,0.000377,3]
[314114641,1707995439521,-153.9,0.000377,3]
[314114642,1707995439531,-153.9,0.000377,3]
[314114643,1707995439543,-153.9,0.000377,3]
[314114644,1707995439552,-153.9,0.000377,3]
[314114645,1707995439562,-153.9,0.000377,3]
[314114646,1707995439571,-153.9,0.000377,3]
[314114647,1707995439581,-153.9,0.000377,3]
[314114648,1707995439590,-153.9,0.000377,3]
[314114649,1707995439599,-153.9,0.000377,3]
[314114650,1707995439609,-153.9,0.000377,3]
[314114651,1707995439618,-153.9,0.000377,3]
[314114652,1707995439627,-153.9,0.000377,3]
[314114653,1707995439637,-757.82,0.00037782,2]
[314114654,1707995439646,-155.0,0.0003779,2]
[314114655,1707995439657,-151.021518,0.00037798,19]
[314114656,1707995439666,-177.34,0.000378,2]
[314114657,1707995439675,-500.0,0.000378,2]
[314114658,1707995439684,-258.00359241,0.000378,2]
[314114659,1707995439694,-207.20143215,0.000378,2]
[314114660,1707995439704,-1954.87434084,0.000378,2]
[314114661,1707995439713,-179.301181,0.000378,2]
[314114662,1707995439723,-229.21753453,0.00037803,10]
[314114663,1707995439732,-10921.76252118,0.00037897,2]
[314114664,1707995439741,-302.043036,0.00037898,18]
[314114665,1707995439751,-1894.5,0.00037899,2]
[314114666,1707995439763,-2315.5,0.00037899,2]
[314114667,1707995439772,-2860.93219222,0.000379,2]
[314114668,1707995439782,-251421.845218,0.000379,2]
[314114669,1707995439791,-690.05,0.000379,7]
[314114670,1707995439801,-285.59,0.000379,7]
[314114671,1707995439810,-757.82,0.0003797,2]
[314114672,1707995439819,-1710270.33570508,0.00038,5]
[314114673,1707995439828,-44770.40263219,0.00038,2]
[314114674,1707995439838,-25064.70510493,0.00038,2]
[314114675,1707995439847,-151.0,0.00038063,2]
[314114676,1707995439856,-757.82,0.00038158,2]
[314114677,1707995439866,-151.021518,0.00038198,20]
[314114678,1707995439876,-12615.0,0.000382,3]
[314114679,1707995439886,-286.2,0.00038202,2]
[314114680,1707995439895,-434.31,0.00038228,2]
[314114681,1707995439905,-757.82,0.00038346,2]
[314114682,1707995439914,-177.34,0.00038348,2]
[314114683,1707995439923,-152.77,0.00038356,2]
[314114684,1707995439932,-4136.12,0.00038356,15]
[314114685,1707995439942,-151.0,0.00038356,7]
[314114686,1707995439951,-151.0,0.00038356,7]
[314114687,1707995439960,-151.0,0.00038356,7]
[314114688,1707995439970,-151.021518,0.00038398,18]
[314114689,1707995439980,-206.0,0.00038399,6]
[314114690,1707995439990,-375.0,0.000384,7]
[314114691,1707995439999,-285.59,0.000384,7]
[314114692,1707995440009,-504.24296948,0.00038435,2]
[314114693,1707995440019,-670.64,0.00038489,2]
[314114694,1707995440030,-151.021518,0.00038498,20]
[314114695,1707995440039,-151.021518,0.00038498,18]
[314114696,1707995440049,-690.05,0.000385,7]
[314114697,1707995440058,-757.82,0.00038534,2]
[314114698,1707995440068,-185.58234875,0.00038564,2]
[314114699,1707995440077,-419036.408696,0.00038574,3]
[314114700,1707995440089,-151.0,0.00038574,7]
[314114701,1707995440098,-151.0,0.00038574,7]
[314114702,1707995440107,-178.588131,0.00038574,7]
[314114703,1707995440117,-179.301181,0.00038576,2]
[314114704,1707995440126,-151.0,0.00038584,7]
[314114705,1707995440136,-151.0,0.00038584,7]
[314114706,1707995440145,-151.0,0.00038584,7]
[314114707,1707995440155,-182.071842,0.00038584,7]
[314114708,1707995440165,-182.071842,0.00038584,7]
[314114709,1707995440174,-440.4191,0.00038584,2]
[314114710,1707995440184,-4411.4539,0.00038584,2]
[314114712,1707995440195,-1789.2257,0.00038584,2]
[314114713,1707995440204,-2869.1009,0.00038584,2]
[314114715,1707995440213,-1854.71,0.00038606,2]
[314114716,1707995440222,-150.0,0.0003864,2]
[314114717,1707995440232,-182.87636207,0.0003868,2]
[314114718,1707995440241,-757.82,0.00038722,2]
[314114719,1707995440250,-187.9077809,0.00038761,2]
[314114720,1707995440259,-327.9306739,0.00038761,2]
[314114721,1707995440269,-312.2975,0.00038761,2]
[314114722,1707995440278,-93059.0199,0.00038761,2]
[314114723,1707995440287,-1723.94283371,0.00038774,2]
[314114724,1707995440296,-151.0,0.0003878,7]
[314114725,1707995440306,-151.0,0.0003878,7]
[314114726,1707995440315,-182.071842,0.0003878,7]
[314114727,1707995440324,-182.071842,0.0003878,7]
[314114728,1707995440334,-151.021518,0.00038798,20]
[314114729,1707995440343,-153.9,0.000388,3]
[314114730,1707995440353,-153.9,0.000388,3]
[314114731,1707995440362,-153.9,0.000388,3]
[314114732,1707995440371,-153.9,0.000388,3]
[314114733,1707995440380,-153.9,0.000388,3]
[314114734,1707995440390,-153.9,0.000388,3]
[314114735,1707995440399,-153.9,0.000388,3]
[314114736,1707995440408,-153.9,0.000388,3]
[314114737,1707995440418,-153.9,0.000388,3]
[314114738,1707995440427,-153.9,0.000388,3]
[314114739,1707995440436,-153.9,0.000388,3]
[314114740,1707995440446,-153.9,0.000388,3]
[314114741,1707995440468,-153.9,0.000388,3]
[314114742,1707995440477,-18739.81671836,0.00038804,2]
[314114743,1707995440487,-1377.19229444,0.00038804,30]
[314114744,1707995440496,-532.31712027,0.00038804,2]
[314114745,1707995440506,-636.73963912,0.00038804,4]
[314114746,1707995440517,-152.32374737,0.00038894,2]
[314114747,1707995440526,-353.38,0.00038896,2]
[314114748,1707995440537,-285.59,0.000389,7]
[314114749,1707995440547,-757.82,0.0003891,2]
[314114750,1707995440556,-1040.14722774,0.00038933,9]
[314114751,1707995440566,-205.77591488,0.00038983,12]
[314114752,1707995440575,-1000.0,0.00038993,2]
[314114753,1707995440586,-10000.0,0.00039,15]
[314114754,1707995440595,-1055.0,0.00039,50]
[314114755,1707995440605,-1394.71947189,0.00039078,2]
[314114756,1707995440615,-155.39,0.00039083,2]
[314114757,1707995440624,-757.82,0.00039098,2]
[314114758,1707995440634,-690.05,0.000391,7]
[314114759,1707995440643,-167.97,0.000391,2]
[314114760,1707995440651,-155.0,0.0003916,2]
[314114761,1707995440660,-151.021518,0.00039198,21]
[314114762,1707995440669,-151.021518,0.00039198,19]
[314114763,1707995440678,-167.87,0.0003926,2]
[314114764,1707995440687,-757.82,0.00039286,2]
[314114765,1707995440698,-295.0,0.00039342,7]
[314114766,1707995440707,-151.0,0.00039342,7]
[314114767,1707995440716,-155.861271,0.00039342,7]
[314114768,1707995440726,-151.0,0.00039352,7]
[314114769,1707995440734,-182.071842,0.00039352,7]
[314114770,1707995440743,-182.071842,0.00039352,7]
[314114771,1707995440752,-151.0,0.00039352,7]
[314114772,1707995440762,-151.0,0.00039352,7]
[314114773,1707995440771,-179.301181,0.00039352,2]
[314114774,1707995440780,-245000.0,0.00039352,2]
[314114775,1707995440791,-5000.0,0.00039352,3]
[314114776,1707995440800,-285.59,0.000394,7]
[314114777,1707995440809,-5000.0,0.00039451,2]
[314114778,1707995440818,-322.53489218,0.00039452,7]
[314114779,1707995440827,-500.0,0.00039452,7]
[314114780,1707995440836,-509.02657177,0.00039452,7]
[314114781,1707995440846,-187.33496323,0.00039452,7]
[314114782,1707995440855,-505.04790904,0.00039452,15]
[314114783,1707995440864,-501.81099762,0.00039452,7]
[314114784,1707995440874,-500.0,0.00039452,7]
[314114785,1707995440883,-296.91424138,0.00039452,7]
[314114786,1707995440894,-500.0,0.00039452,7]
[314114787,1707995440903,-500.0,0.00039452,7]
[314114788,1707995440913,-151.0,0.00039452,7]
[314114789,1707995440922,-500.0,0.00039452,7]
[314114790,1707995440931,-500.0,0.00039452,7]
[314114791,1707995440941,-502.63658136,0.00039452,7]
[314114792,1707995440952,-500.0,0.00039452,7]
[314114793,1707995440962,-302.03527271,0.00039452,7]
[314114794,1707995440971,-571.62106035,0.00039452,7]
[314114795,1707995440980,-500.93866923,0.00039452,7]
[314114796,1707995440990,-500.0,0.00039452,7]
[314114797,1707995440999,-498.15545369,0.00039452,7]
[314114798,1707995441009,-500.0,0.00039452,7]
[314114799,1707995441018,-500.0,0.00039452,7]
[314114800,1707995441027,-500.0,0.00039452,7]
[314114801,1707995441036,-321.69648625,0.00039452,7]
[314114802,1707995441045,-500.2639986,0.00039452,7]
[314114803,1707995441054,-532.22106102,0.00039452,7]
[314114804,1707995441064,-511.27272586,0.00039452,7]